[Event "Late-Titled-Tuesday-Blitz-June-25-2024"]
[Site "Chess.com"]
[Date "2024.06.25"]
[Round "5"]
[White "Sasha_Solovev_777"]
[Black "josiur"]
[Result "1/2-1/2"]
[WhiteElo "2262"]
[BlackElo "2466"]
[TimeControl "180+1"]
[EndTime "14:54:52 PDT"]
[Termination "Game drawn by repetition"]

1. e4 {[%clk 0:03:00.9]} 1... c6 {[%clk 0:02:59.7]} 2. d4 {[%clk 0:03:00]} 2...
d5 {[%clk 0:03:00.6]} 3. Nc3 {[%clk 0:03:00.1]} 3... dxe4 {[%clk 0:03:00.6]} 4.
Nxe4 {[%clk 0:03:00.9]} 4... Nf6 {[%clk 0:03:01.2]} 5. Nxf6+ {[%clk 0:02:59.8]}
5... exf6 {[%clk 0:03:02.1]} 6. c3 {[%clk 0:03:00.3]} 6... Bd6 {[%clk
0:03:02.4]} 7. Bd3 {[%clk 0:03:00.9]} 7... O-O {[%clk 0:03:02.9]} 8. Qc2 {[%clk
0:03:01.1]} 8... Re8+ {[%clk 0:03:03.3]} 9. Ne2 {[%clk 0:03:01.3]} 9... h5
{[%clk 0:03:04.2]} 10. h3 {[%clk 0:02:58.1]} 10... Nd7 {[%clk 0:03:02]} 11. O-O
{[%clk 0:02:56.9]} 11... h4 {[%clk 0:02:56.9]} 12. Bd2 {[%clk 0:02:56]} 12...
Nf8 {[%clk 0:02:56.7]} 13. Rae1 {[%clk 0:02:49.6]} 13... Bc7 {[%clk 0:02:50.9]}
14. Nf4 {[%clk 0:02:47.1]} 14... Ne6 {[%clk 0:02:47.7]} 15. Nh5 {[%clk
0:02:37.2]} 15... Qd6 {[%clk 0:02:43.7]} 16. f4 {[%clk 0:02:32.9]} 16... Bd7
{[%clk 0:02:37.7]} 17. Bc1 {[%clk 0:02:11.8]} 17... Qd5 {[%clk 0:02:35.8]} 18.
f5 {[%clk 0:01:52.5]} 18... Ng5 {[%clk 0:01:46.7]} 19. Qf2 {[%clk 0:01:21]}
19... Bg3 {[%clk 0:01:06.9]} 20. Nxg3 {[%clk 0:01:19.7]} 20... hxg3 {[%clk
0:01:07.8]} 21. Qxg3 {[%clk 0:01:17.3]} 21... c5 {[%clk 0:01:08.7]} 22. h4
{[%clk 0:01:01.7]} 22... Ne4 {[%clk 0:01:08.3]} 23. Bxe4 {[%clk 0:01:01.6]}
23... Rxe4 {[%clk 0:01:07.6]} 24. Bh6 {[%clk 0:00:50.3]} 24... g6 {[%clk
0:01:06.2]} 25. fxg6 {[%clk 0:00:48.6]} 25... Rg4 {[%clk 0:01:05.9]} 26. Qf3
{[%clk 0:00:33.2]} 26... Qxf3 {[%clk 0:01:00.5]} 27. gxf7+ {[%clk 0:00:32.7]}
27... Kxf7 {[%clk 0:00:58.5]} 28. Rxf3 {[%clk 0:00:33.3]} 28... Rag8 {[%clk
0:00:55.4]} 29. Bg5 {[%clk 0:00:30.6]} 29... R8xg5 {[%clk 0:00:36.3]} 30. hxg5
{[%clk 0:00:30.3]} 30... Rxg5 {[%clk 0:00:37.2]} 31. dxc5 {[%clk 0:00:30.4]}
31... Bc6 {[%clk 0:00:36.5]} 32. Rf2 {[%clk 0:00:28.8]} 32... Rxc5 {[%clk
0:00:36.4]} 33. Ref1 {[%clk 0:00:27.7]} 33... Rg5 {[%clk 0:00:32.9]} 34. Rxf6+
{[%clk 0:00:27.4]} 34... Ke7 {[%clk 0:00:33.5]} 35. R6f2 {[%clk 0:00:26.6]}
35... Kd6 {[%clk 0:00:33.2]} 36. Rd1+ {[%clk 0:00:23.6]} 36... Kc7 {[%clk
0:00:33.1]} 37. Rdd2 {[%clk 0:00:23.7]} 37... a5 {[%clk 0:00:31.8]} 38. b3
{[%clk 0:00:23.6]} 38... Kb6 {[%clk 0:00:31.8]} 39. c4 {[%clk 0:00:23.9]} 39...
Kc5 {[%clk 0:00:32.1]} 40. Kf1 {[%clk 0:00:23.1]} 40... Kb4 {[%clk 0:00:32.3]}
41. Rf4 {[%clk 0:00:20.3]} 41... a4 {[%clk 0:00:29.5]} 42. bxa4 {[%clk
0:00:18.9]} 42... Kxa4 {[%clk 0:00:29.4]} 43. g4 {[%clk 0:00:19.2]} 43... Kb4
{[%clk 0:00:25.7]} 44. Kf2 {[%clk 0:00:19]} 44... Kc3 {[%clk 0:00:25.8]} 45. Re2
{[%clk 0:00:18.7]} 45... Kd3 {[%clk 0:00:22.6]} 46. Re3+ {[%clk 0:00:18.7]}
46... Kd2 {[%clk 0:00:22.4]} 47. Re2+ {[%clk 0:00:16.5]} 47... Kd3 {[%clk
0:00:22.4]} 48. Re3+ {[%clk 0:00:16.1]} 48... Kd2 {[%clk 0:00:22.8]} 49. Rg3
{[%clk 0:00:16.3]} 49... Re5 {[%clk 0:00:20]} 50. g5 {[%clk 0:00:15.7]} 50...
Re2+ {[%clk 0:00:20]} 51. Kf1 {[%clk 0:00:15.1]} 51... Re1+ {[%clk 0:00:18.5]}
52. Kf2 {[%clk 0:00:15.6]} 52... Re2+ {[%clk 0:00:18.8]} 53. Kf1 {[%clk
0:00:16.1]} 53... Re1+ {[%clk 0:00:19.2]} 54. Kf2 {[%clk 0:00:16.3]} 54... Re2+
{[%clk 0:00:19.6]} 1/2-1/2

[Event "Late-Titled-Tuesday-Blitz-June-25-2024"]
[Site "Chess.com"]
[Date "2024.06.25"]
[Round "5"]
[White "campochess"]
[Black "Heliosis11"]
[Result "0-1"]
[WhiteElo "2220"]
[BlackElo "2429"]
[TimeControl "180+1"]
[EndTime "14:54:52 PDT"]
[Termination "Heliosis11 won by checkmate"]

1. Nf3 {[%clk 0:02:59.6]} 1... c5 {[%clk 0:01:37.4]} 2. e4 {[%clk 0:02:57.2]}
2... e6 {[%clk 0:01:16.1]} 3. c3 {[%clk 0:02:52.5]} 3... Nf6 {[%clk 0:01:15.8]}
4. Bd3 {[%clk 0:02:51.4]} 4... Nc6 {[%clk 0:01:15.6]} 5. O-O {[%clk 0:02:49.6]}
5... d5 {[%clk 0:01:14.8]} 6. exd5 {[%clk 0:02:40.2]} 6... exd5 {[%clk
0:01:14.9]} 7. Bb5 {[%clk 0:02:38.5]} 7... Be7 {[%clk 0:01:14.8]} 8. Ne5 {[%clk
0:02:36.3]} 8... Bd7 {[%clk 0:01:14]} 9. Bxc6 {[%clk 0:02:33.6]} 9... Bxc6
{[%clk 0:01:14.3]} 10. d4 {[%clk 0:02:33.5]} 10... c4 {[%clk 0:01:13.1]} 11.
Nxc6 {[%clk 0:02:31.2]} 11... bxc6 {[%clk 0:01:14]} 12. Nd2 {[%clk 0:02:30.2]}
12... O-O {[%clk 0:01:14.4]} 13. Nf3 {[%clk 0:02:29.9]} 13... Ne4 {[%clk
0:01:14.3]} 14. Re1 {[%clk 0:02:28.9]} 14... f5 {[%clk 0:01:14.1]} 15. Ne5
{[%clk 0:02:26.7]} 15... Qc8 {[%clk 0:01:08.3]} 16. f3 {[%clk 0:02:26.4]} 16...
Nf6 {[%clk 0:01:07.6]} 17. Nxc6 {[%clk 0:02:23.3]} 17... Qxc6 {[%clk 0:01:07.6]}
18. Rxe7 {[%clk 0:02:22.6]} 18... Rfe8 {[%clk 0:01:07.8]} 19. Qe2 {[%clk
0:02:18.3]} 19... Rxe7 {[%clk 0:01:05.6]} 20. Qxe7 {[%clk 0:02:16.2]} 20... Re8
{[%clk 0:01:06.5]} 21. Qxa7 {[%clk 0:02:08.7]} 21... Re1+ {[%clk 0:01:06.6]} 22.
Kf2 {[%clk 0:02:08.6]} 22... Qe6 {[%clk 0:01:06.9]} 23. Bh6 {[%clk 0:01:48.6]}
23... Qe2+ {[%clk 0:00:59.8]} 24. Kg3 {[%clk 0:01:48.1]} 24... gxh6 {[%clk
0:00:55.6]} 25. Rxe1 {[%clk 0:01:40.3]} 25... Qxe1+ {[%clk 0:00:55.7]} 26. Kf4
{[%clk 0:01:40.2]} 26... Qe6 {[%clk 0:00:48.8]} 27. Qb8+ {[%clk 0:01:34.6]}
27... Kg7 {[%clk 0:00:48.2]} 28. Qe5 {[%clk 0:01:33.9]} 28... Kf7 {[%clk
0:00:42.7]} 29. Qxf5 {[%clk 0:01:29.3]} 29... Qe2 {[%clk 0:00:43.1]} 30. Qh3
{[%clk 0:01:13.4]} 30... Qxb2 {[%clk 0:00:41]} 31. g4 {[%clk 0:01:05.6]} 31...
Qxc3 {[%clk 0:00:39]} 32. Ke5 {[%clk 0:01:01.3]} 32... Qe3+ {[%clk 0:00:38.5]}
33. Kd6 {[%clk 0:01:01.2]} 33... Qe6+ {[%clk 0:00:38.4]} 34. Kc5 {[%clk
0:01:01]} 34... Nd7+ {[%clk 0:00:35]} 35. Kb4 {[%clk 0:00:58.9]} 35... Qe1+
{[%clk 0:00:35.1]} 36. Kb5 {[%clk 0:00:55.1]} 36... Qb1+ {[%clk 0:00:34.8]} 37.
Kc6 {[%clk 0:00:54.1]} 37... Nf6 {[%clk 0:00:33.2]} 38. Qxh6 {[%clk 0:00:43.2]}
38... Qxa2 {[%clk 0:00:31.9]} 39. Qf4 {[%clk 0:00:31.7]} 39... Qa6+ {[%clk
0:00:31.4]} 40. Kc7 {[%clk 0:00:29.8]} 40... Ke7 {[%clk 0:00:22.3]} 41. Qe5+
{[%clk 0:00:28.1]} 41... Qe6 {[%clk 0:00:22.4]} 42. Qg5 {[%clk 0:00:20.5]} 42...
Qd6+ {[%clk 0:00:19.7]} 43. Kb7 {[%clk 0:00:20.4]} 43... Qd7+ {[%clk 0:00:17.2]}
44. Kb6 {[%clk 0:00:19.5]} 44... Qe6+ {[%clk 0:00:16.6]} 45. Kb7 {[%clk
0:00:19]} 45... c3 {[%clk 0:00:14.7]} 46. Qf4 {[%clk 0:00:14]} 46... c2 {[%clk
0:00:12.6]} 47. g5 {[%clk 0:00:13.9]} 47... Nd7 {[%clk 0:00:10.8]} 48. Qd2
{[%clk 0:00:08.8]} 48... Qb6+ {[%clk 0:00:10.5]} 49. Kc8 {[%clk 0:00:08.8]}
49... Qb8# {[%clk 0:00:09.9]} 0-1

[Event "Late-Titled-Tuesday-Blitz-June-25-2024"]
[Site "Chess.com"]
[Date "2024.06.25"]
[Round "5"]
[White "IsaacWiebe"]
[Black "koncheto"]
[Result "0-1"]
[WhiteElo "2366"]
[BlackElo "2578"]
[TimeControl "180+1"]
[EndTime "14:54:58 PDT"]
[Termination "koncheto won on time"]

1. e4 {[%clk 0:03:00.1]} 1... c5 {[%clk 0:03:00.4]} 2. Nf3 {[%clk 0:03:00.4]}
2... d6 {[%clk 0:03:00.7]} 3. d4 {[%clk 0:03:00]} 3... cxd4 {[%clk 0:03:01.6]}
4. Nxd4 {[%clk 0:03:00.7]} 4... Nf6 {[%clk 0:03:02.3]} 5. Nc3 {[%clk 0:03:01.3]}
5... Nc6 {[%clk 0:03:02.9]} 6. Bc4 {[%clk 0:03:00.7]} 6... e6 {[%clk 0:03:03.4]}
7. Bb3 {[%clk 0:03:00.4]} 7... a6 {[%clk 0:03:04]} 8. Be3 {[%clk 0:03:00.4]}
8... Qc7 {[%clk 0:03:04.2]} 9. Qe2 {[%clk 0:03:00.6]} 9... b5 {[%clk 0:03:03.8]}
10. a3 {[%clk 0:02:49.2]} 10... Bb7 {[%clk 0:03:02.6]} 11. f3 {[%clk 0:02:48.5]}
11... Be7 {[%clk 0:02:49.3]} 12. O-O {[%clk 0:02:46.4]} 12... O-O {[%clk
0:02:47.4]} 13. Rad1 {[%clk 0:02:43]} 13... Rfd8 {[%clk 0:02:46.8]} 14. Qf2
{[%clk 0:02:39.3]} 14... Rac8 {[%clk 0:02:09.5]} 15. Nxc6 {[%clk 0:02:12.3]}
15... Qxc6 {[%clk 0:02:08]} 16. Rd2 {[%clk 0:02:07.9]} 16... Nd7 {[%clk
0:01:50.2]} 17. Rfd1 {[%clk 0:01:52.9]} 17... Nc5 {[%clk 0:01:48.9]} 18. Ba2
{[%clk 0:01:52.7]} 18... a5 {[%clk 0:01:48.9]} 19. Ne2 {[%clk 0:01:34.3]} 19...
b4 {[%clk 0:01:34.1]} 20. Nd4 {[%clk 0:01:33.2]} 20... Qa6 {[%clk 0:01:30.5]}
21. axb4 {[%clk 0:01:28.3]} 21... axb4 {[%clk 0:01:30.9]} 22. Bb1 {[%clk
0:01:25.3]} 22... Qa1 {[%clk 0:01:07.1]} 23. Nb5 {[%clk 0:00:44.1]} 23... Qa6
{[%clk 0:00:33.5]} 24. c4 {[%clk 0:00:40.4]} 24... bxc3 {[%clk 0:00:29.3]} 25.
Nxc3 {[%clk 0:00:40.7]} 25... Nb3 {[%clk 0:00:27.2]} 26. Re2 {[%clk 0:00:39.3]}
26... Bf6 {[%clk 0:00:24.1]} 27. Rc2 {[%clk 0:00:16.2]} 27... h6 {[%clk
0:00:13.2]} 28. Na2 {[%clk 0:00:07.6]} 28... Nc5 {[%clk 0:00:08.4]} 29. Nb4
{[%clk 0:00:06.9]} 29... Qb5 {[%clk 0:00:07]} 30. Bd2 {[%clk 0:00:04.9]} 30...
Nb3 {[%clk 0:00:04.2]} 31. Rxc8 {[%clk 0:00:04.8]} 31... Rxc8 {[%clk 0:00:04.7]}
32. Nd3 {[%clk 0:00:03.5]} 32... Bd4 {[%clk 0:00:04.5]} 33. Be3 {[%clk
0:00:04.1]} 33... e5 {[%clk 0:00:04.5]} 34. Bxd4 {[%clk 0:00:04.2]} 34... Nxd4
{[%clk 0:00:05.4]} 35. Ne1 {[%clk 0:00:03.1]} 35... Ba6 {[%clk 0:00:05.1]} 36.
Bd3 {[%clk 0:00:03.2]} 36... Qb6 {[%clk 0:00:03.8]} 37. Kh1 {[%clk 0:00:02.5]}
37... Bxd3 {[%clk 0:00:03.1]} 38. Nxd3 {[%clk 0:00:02.7]} 38... Rc2 {[%clk
0:00:03.4]} 39. Qg3 {[%clk 0:00:02.3]} 39... Ne2 {[%clk 0:00:02.9]} 40. Qg4
{[%clk 0:00:02.2]} 40... Qd8 {[%clk 0:00:01.4]} 41. h4 {[%clk 0:00:02.5]} 41...
Nd4 {[%clk 0:00:01.5]} 42. Nb4 {[%clk 0:00:01.1]} 42... Rxb2 {[%clk 0:00:01.6]}
43. Nd5 {[%clk 0:00:01.5]} 43... Ne2 {[%clk 0:00:01.2]} 0-1

[Event "Late-Titled-Tuesday-Blitz-June-25-2024"]
[Site "Chess.com"]
[Date "2024.06.25"]
[Round "5"]
[White "MoldyTofu"]
[Black "maracayo"]
[Result "1/2-1/2"]
[WhiteElo "2043"]
[BlackElo "2389"]
[TimeControl "180+1"]
[EndTime "14:54:58 PDT"]
[Termination "Game drawn by repetition"]

1. b3 {[%clk 0:03:00.2]} 1... d6 {[%clk 0:03:00.1]} 2. Bb2 {[%clk 0:02:59.5]}
2... e5 {[%clk 0:03:00.6]} 3. e3 {[%clk 0:03:00.1]} 3... Nf6 {[%clk 0:03:00.7]}
4. d4 {[%clk 0:03:00.5]} 4... exd4 {[%clk 0:03:00.2]} 5. exd4 {[%clk 0:03:00.4]}
5... Be7 {[%clk 0:03:00.3]} 6. Nf3 {[%clk 0:03:00]} 6... O-O {[%clk 0:03:00.2]}
7. Bd3 {[%clk 0:03:00.4]} 7... d5 {[%clk 0:02:59.7]} 8. h3 {[%clk 0:02:59.3]}
8... Re8 {[%clk 0:02:57.3]} 9. O-O {[%clk 0:02:59.7]} 9... Nbd7 {[%clk 0:02:57]}
10. Re1 {[%clk 0:03:00.1]} 10... b6 {[%clk 0:02:51.2]} 11. Nbd2 {[%clk
0:03:00.5]} 11... Bb7 {[%clk 0:02:50.8]} 12. Ne5 {[%clk 0:03:01.1]} 12... c5
{[%clk 0:02:47.4]} 13. Ndf3 {[%clk 0:02:59.6]} 13... Ne4 {[%clk 0:02:45.5]} 14.
c4 {[%clk 0:02:55.6]} 14... Nxe5 {[%clk 0:02:42.3]} 15. Nxe5 {[%clk 0:02:26]}
15... Bh4 {[%clk 0:02:11]} 16. Bxe4 {[%clk 0:02:02.8]} 16... dxe4 {[%clk
0:02:09.9]} 17. dxc5 {[%clk 0:01:57.6]} 17... bxc5 {[%clk 0:01:45.8]} 18. Qh5
{[%clk 0:01:33.2]} 18... Qf6 {[%clk 0:00:51.7]} 19. Re2 {[%clk 0:00:41.3]} 19...
g6 {[%clk 0:00:19.4]} 20. Qg4 {[%clk 0:00:13.5]} 20... Bc8 {[%clk 0:00:14.3]}
21. Qxe4 {[%clk 0:00:11.8]} 21... Bf5 {[%clk 0:00:12.7]} 22. Qf4 {[%clk
0:00:09.9]} 22... Bg5 {[%clk 0:00:12.1]} 23. Qg3 {[%clk 0:00:09]} 23... Rad8
{[%clk 0:00:09.8]} 24. Rae1 {[%clk 0:00:09.2]} 24... Bh4 {[%clk 0:00:07.6]} 25.
Qc3 {[%clk 0:00:08.4]} 25... Rd4 {[%clk 0:00:05.7]} 26. Ng4 {[%clk 0:00:08.1]}
26... Rxe2 {[%clk 0:00:02.1]} 27. Nxf6+ {[%clk 0:00:07.8]} 27... Bxf6 {[%clk
0:00:01.4]} 28. Rxe2 {[%clk 0:00:08]} 28... Rd1+ {[%clk 0:00:01.6]} 29. Re1
{[%clk 0:00:07.1]} 29... Bxc3 {[%clk 0:00:01.5]} 30. Bxc3 {[%clk 0:00:07.2]}
30... Rxe1+ {[%clk 0:00:01.2]} 31. Bxe1 {[%clk 0:00:08.1]} 31... Bb1 {[%clk
0:00:01.3]} 32. a4 {[%clk 0:00:07.9]} 32... Ba2 {[%clk 0:00:02.2]} 33. b4 {[%clk
0:00:07.9]} 33... Bxc4 {[%clk 0:00:01.9]} 34. bxc5 {[%clk 0:00:08.2]} 34... Kf8
{[%clk 0:00:01.4]} 35. a5 {[%clk 0:00:08.9]} 35... Ke7 {[%clk 0:00:01.8]} 36.
Bb4 {[%clk 0:00:09.4]} 36... Kd7 {[%clk 0:00:02.4]} 37. f3 {[%clk 0:00:08.8]}
37... Kc6 {[%clk 0:00:03.3]} 38. Kf2 {[%clk 0:00:08.9]} 38... Kb5 {[%clk
0:00:03.7]} 39. Bd2 {[%clk 0:00:09]} 39... Kxc5 {[%clk 0:00:03.5]} 40. Ke3
{[%clk 0:00:09.9]} 40... Kb5 {[%clk 0:00:03.9]} 41. Kf4 {[%clk 0:00:10.5]} 41...
Be6 {[%clk 0:00:04.5]} 42. Kg5 {[%clk 0:00:10.8]} 42... h5 {[%clk 0:00:05.3]}
43. Kf6 {[%clk 0:00:11.1]} 43... a6 {[%clk 0:00:04.7]} 44. f4 {[%clk 0:00:10.8]}
44... Kc4 {[%clk 0:00:04.4]} 45. g4 {[%clk 0:00:11.2]} 45... hxg4 {[%clk
0:00:04.5]} 46. hxg4 {[%clk 0:00:12.1]} 46... Bxg4 {[%clk 0:00:04.8]} 47. Kg5
{[%clk 0:00:11.5]} 47... Bf5 {[%clk 0:00:05.7]} 48. Kf6 {[%clk 0:00:11.8]} 48...
Kd5 {[%clk 0:00:06.2]} 49. Be3 {[%clk 0:00:11.2]} 49... Ke4 {[%clk 0:00:07.1]}
50. Bc1 {[%clk 0:00:11.5]} 50... Kf3 {[%clk 0:00:07.8]} 51. Bd2 {[%clk
0:00:11.6]} 51... Ke2 {[%clk 0:00:08.7]} 52. Bc1 {[%clk 0:00:11.7]} 52... Kd3
{[%clk 0:00:09.6]} 53. Kg5 {[%clk 0:00:11.4]} 53... Be6 {[%clk 0:00:10.5]} 54.
Kf6 {[%clk 0:00:11.8]} 54... Ke4 {[%clk 0:00:10.6]} 55. Kg5 {[%clk 0:00:12.2]}
55... Kd5 {[%clk 0:00:10.8]} 56. Kf6 {[%clk 0:00:12.3]} 56... Ke4 {[%clk
0:00:11.7]} 57. Kg5 {[%clk 0:00:12.6]} 57... Kd5 {[%clk 0:00:11.9]} 58. Kf6
{[%clk 0:00:13.2]} 58... Ke4 {[%clk 0:00:12.4]} 1/2-1/2

[Event "Late-Titled-Tuesday-Blitz-June-25-2024"]
[Site "Chess.com"]
[Date "2024.06.25"]
[Round "5"]
[White "Flawless_Fighter"]
[Black "FLYD"]
[Result "1-0"]
[WhiteElo "2776"]
[BlackElo "2152"]
[TimeControl "180+1"]
[EndTime "14:55:00 PDT"]
[Termination "Flawless_Fighter won by checkmate"]

1. d4 {[%clk 0:03:00.9]} 1... Nf6 {[%clk 0:02:59.3]} 2. Nf3 {[%clk 0:02:59.7]}
2... e6 {[%clk 0:02:52.1]} 3. g3 {[%clk 0:02:57.1]} 3... d5 {[%clk 0:02:51.2]}
4. Bg2 {[%clk 0:02:57.1]} 4... Be7 {[%clk 0:02:51.6]} 5. O-O {[%clk 0:02:57.5]}
5... O-O {[%clk 0:02:52]} 6. c4 {[%clk 0:02:57.2]} 6... dxc4 {[%clk 0:02:52.9]}
7. Qc2 {[%clk 0:02:56.4]} 7... a6 {[%clk 0:02:53.2]} 8. a4 {[%clk 0:02:54.3]}
8... Bd7 {[%clk 0:02:53.6]} 9. Nbd2 {[%clk 0:02:48.2]} 9... Bc6 {[%clk
0:02:51.6]} 10. Nxc4 {[%clk 0:02:48.4]} 10... Be4 {[%clk 0:02:49.6]} 11. Qd1
{[%clk 0:02:46.2]} 11... Nc6 {[%clk 0:02:45.6]} 12. e3 {[%clk 0:02:30.2]} 12...
Qd5 {[%clk 0:02:36.8]} 13. Ncd2 {[%clk 0:02:29.2]} 13... Rfd8 {[%clk 0:02:27.3]}
14. Nxe4 {[%clk 0:02:27.4]} 14... Nxe4 {[%clk 0:02:28.2]} 15. Nd2 {[%clk
0:02:25.8]} 15... f5 {[%clk 0:02:21.5]} 16. Nxe4 {[%clk 0:02:25.9]} 16... fxe4
{[%clk 0:02:21.3]} 17. Qg4 {[%clk 0:02:17.5]} 17... Qf5 {[%clk 0:02:07.9]} 18.
Qxe4 {[%clk 0:02:16]} 18... Nb4 {[%clk 0:01:57.6]} 19. Bd2 {[%clk 0:02:04.6]}
19... Nd3 {[%clk 0:01:51.3]} 20. Bc3 {[%clk 0:01:49.8]} 20... Rab8 {[%clk
0:01:40.5]} 21. Rad1 {[%clk 0:01:45.2]} 21... Nb4 {[%clk 0:01:38]} 22. Rc1
{[%clk 0:01:28]} 22... Nd5 {[%clk 0:01:32.2]} 23. Bd2 {[%clk 0:01:22.5]} 23...
Nf6 {[%clk 0:01:28.5]} 24. Qxf5 {[%clk 0:01:21.1]} 24... exf5 {[%clk 0:01:29.4]}
25. Rxc7 {[%clk 0:01:21]} 25... Bd6 {[%clk 0:01:21]} 26. Rxb7 {[%clk 0:01:20.6]}
26... Rxb7 {[%clk 0:01:21.1]} 27. Bxb7 {[%clk 0:01:21.5]} 27... Rb8 {[%clk
0:01:21.3]} 28. Bxa6 {[%clk 0:01:19.5]} 28... Rxb2 {[%clk 0:01:21.4]} 29. Bc3
{[%clk 0:01:18.9]} 29... Rc2 {[%clk 0:01:18.4]} 30. Ba5 {[%clk 0:01:13.6]} 30...
Kf8 {[%clk 0:01:12.8]} 31. Bd3 {[%clk 0:01:10.6]} 31... Ra2 {[%clk 0:01:10.2]}
32. Bxf5 {[%clk 0:01:09.5]} 32... Rxa4 {[%clk 0:01:09.8]} 33. Bd2 {[%clk
0:01:09.4]} 33... g6 {[%clk 0:01:09.5]} 34. Bd3 {[%clk 0:01:06.5]} 34... Ra2
{[%clk 0:01:08]} 35. Rd1 {[%clk 0:01:06.2]} 35... Ke7 {[%clk 0:00:55.3]} 36. Kg2
{[%clk 0:01:05.8]} 36... g5 {[%clk 0:00:52.3]} 37. h3 {[%clk 0:01:05.4]} 37...
h5 {[%clk 0:00:51.3]} 38. e4 {[%clk 0:01:04.9]} 38... Bb8 {[%clk 0:00:28.8]} 39.
e5 {[%clk 0:01:01]} 39... Nd5 {[%clk 0:00:26.4]} 40. Bc4 {[%clk 0:00:59.9]}
40... Rb2 {[%clk 0:00:25]} 41. Bxd5 {[%clk 0:00:59.3]} 41... g4 {[%clk
0:00:21.9]} 42. hxg4 {[%clk 0:00:58]} 42... hxg4 {[%clk 0:00:21.9]} 43. Be3
{[%clk 0:00:57.4]} 43... Bd6 {[%clk 0:00:17.6]} 44. exd6+ {[%clk 0:00:56.9]}
44... Kxd6 {[%clk 0:00:18.5]} 45. Be4 {[%clk 0:00:57]} 45... Ra2 {[%clk
0:00:17.8]} 46. Rb1 {[%clk 0:00:56.1]} 46... Ke6 {[%clk 0:00:17.4]} 47. Rb6+
{[%clk 0:00:55.5]} 47... Ke7 {[%clk 0:00:17]} 48. Bg5+ {[%clk 0:00:54.5]} 48...
Kf8 {[%clk 0:00:16.7]} 49. d5 {[%clk 0:00:51.2]} 49... Ke8 {[%clk 0:00:13]} 50.
Rb7 {[%clk 0:00:47.8]} 50... Kf8 {[%clk 0:00:10.3]} 51. d6 {[%clk 0:00:47.3]}
51... Ra6 {[%clk 0:00:02.6]} 52. d7 {[%clk 0:00:36.9]} 52... Rd6 {[%clk
0:00:03]} 53. d8=Q+ {[%clk 0:00:33.7]} 53... Rxd8 {[%clk 0:00:03.4]} 54. Bxd8
{[%clk 0:00:34.5]} 54... Ke8 {[%clk 0:00:03.7]} 55. Bf6 {[%clk 0:00:30.9]} 55...
Kf8 {[%clk 0:00:04]} 56. Bg6 {[%clk 0:00:28.8]} 56... Kg8 {[%clk 0:00:04.1]} 57.
Rb8# {[%clk 0:00:29.7]} 1-0

[Event "Late-Titled-Tuesday-Blitz-June-25-2024"]
[Site "Chess.com"]
[Date "2024.06.25"]
[Round "5"]
[White "DmitriiZakurdaev"]
[Black "jens1102"]
[Result "1-0"]
[WhiteElo "2421"]
[BlackElo "2594"]
[TimeControl "180+1"]
[EndTime "14:55:03 PDT"]
[Termination "DmitriiZakurdaev won by checkmate"]

1. d4 {[%clk 0:03:00.9]} 1... Nf6 {[%clk 0:02:45.7]} 2. c4 {[%clk 0:02:58.3]}
2... b6 {[%clk 0:02:46.6]} 3. Nc3 {[%clk 0:02:57.8]} 3... Bb7 {[%clk 0:02:47]}
4. Nf3 {[%clk 0:02:56.4]} 4... e6 {[%clk 0:02:41.5]} 5. a3 {[%clk 0:02:55.2]}
5... d5 {[%clk 0:02:39.7]} 6. e3 {[%clk 0:02:54.9]} 6... Be7 {[%clk 0:02:39.1]}
7. b3 {[%clk 0:02:54.1]} 7... O-O {[%clk 0:02:39.6]} 8. Bb2 {[%clk 0:02:53.9]}
8... Nbd7 {[%clk 0:02:40.4]} 9. Bd3 {[%clk 0:02:48.8]} 9... Ne4 {[%clk
0:02:40.6]} 10. O-O {[%clk 0:02:48.1]} 10... f5 {[%clk 0:02:38.5]} 11. b4 {[%clk
0:02:35.9]} 11... Bf6 {[%clk 0:02:38.3]} 12. Nd2 {[%clk 0:02:28.2]} 12... c5
{[%clk 0:02:37.2]} 13. Ne2 {[%clk 0:02:02.3]} 13... e5 {[%clk 0:02:31.7]} 14.
cxd5 {[%clk 0:01:58.4]} 14... Bxd5 {[%clk 0:02:29.3]} 15. dxc5 {[%clk
0:01:51.7]} 15... bxc5 {[%clk 0:02:25.7]} 16. Bxe4 {[%clk 0:01:47.8]} 16... fxe4
{[%clk 0:02:18.9]} 17. Nc3 {[%clk 0:01:47.8]} 17... Bb7 {[%clk 0:02:13.5]} 18.
Ndxe4 {[%clk 0:01:47.7]} 18... cxb4 {[%clk 0:02:12.6]} 19. axb4 {[%clk 0:01:44]}
19... Nb6 {[%clk 0:02:12.7]} 20. Qb3+ {[%clk 0:01:42.8]} 20... Kh8 {[%clk
0:02:10.7]} 21. Rfd1 {[%clk 0:01:41.6]} 21... Qe8 {[%clk 0:02:10]} 22. Nd6
{[%clk 0:01:41.5]} 22... Qe7 {[%clk 0:01:56.4]} 23. Nxb7 {[%clk 0:01:38.8]}
23... Qxb7 {[%clk 0:01:55.9]} 24. Nb5 {[%clk 0:01:38.6]} 24... Bh4 {[%clk
0:01:41.8]} 25. g3 {[%clk 0:01:35.1]} 25... Qf3 {[%clk 0:01:35.4]} 26. Rf1
{[%clk 0:01:18.4]} 26... Nd5 {[%clk 0:01:30.4]} 27. Bxe5 {[%clk 0:01:11.7]}
27... Rae8 {[%clk 0:01:25.3]} 28. Bd6 {[%clk 0:01:02.5]} 28... Bg5 {[%clk
0:01:10.7]} 29. Nd4 {[%clk 0:00:59.1]} 29... Qe4 {[%clk 0:01:00.6]} 30. Bxf8
{[%clk 0:00:55]} 30... Nxe3 {[%clk 0:00:59]} 31. f3 {[%clk 0:00:37.6]} 31...
Qxd4 {[%clk 0:00:47.7]} 32. Bc5 {[%clk 0:00:37.9]} 32... Qf6 {[%clk 0:00:39.2]}
33. Bxe3 {[%clk 0:00:13.4]} 33... Bxe3+ {[%clk 0:00:30.9]} 34. Kg2 {[%clk
0:00:13.5]} 34... h5 {[%clk 0:00:24.8]} 35. Rae1 {[%clk 0:00:13.6]} 35... Qd4
{[%clk 0:00:20.2]} 36. Re2 {[%clk 0:00:12.4]} 36... h4 {[%clk 0:00:16.1]} 37.
Rfe1 {[%clk 0:00:11.3]} 37... h3+ {[%clk 0:00:03.6]} 38. Kxh3 {[%clk 0:00:08.6]}
38... Re5 {[%clk 0:00:03.8]} 39. Rxe3 {[%clk 0:00:06.6]} 39... Rh5+ {[%clk
0:00:04.7]} 40. Kg2 {[%clk 0:00:06.9]} 40... Qd2+ {[%clk 0:00:05.2]} 41. R1e2
{[%clk 0:00:07.4]} 41... Qc1 {[%clk 0:00:04.5]} 42. Re8+ {[%clk 0:00:07]} 42...
Kh7 {[%clk 0:00:04.4]} 43. Qc2+ {[%clk 0:00:06.6]} 43... Qxc2 {[%clk 0:00:03.1]}
44. Rxc2 {[%clk 0:00:07.5]} 44... Rb5 {[%clk 0:00:02.5]} 45. Re4 {[%clk
0:00:08]} 45... a5 {[%clk 0:00:01.8]} 46. Rc5 {[%clk 0:00:08.1]} 46... axb4
{[%clk 0:00:01.3]} 47. Rxb5 {[%clk 0:00:08.1]} 47... Kh6 {[%clk 0:00:01.8]} 48.
Rbxb4 {[%clk 0:00:08.5]} 48... g6 {[%clk 0:00:02.7]} 49. Rb5 {[%clk 0:00:08.9]}
49... g5 {[%clk 0:00:03.6]} 50. Ree5 {[%clk 0:00:09.2]} 50... Kh5 {[%clk
0:00:04.5]} 51. Rxg5+ {[%clk 0:00:09.4]} 51... Kh6 {[%clk 0:00:05.4]} 52. Rgc5
{[%clk 0:00:09.1]} 52... Kg7 {[%clk 0:00:05.7]} 53. Rb6 {[%clk 0:00:09.5]} 53...
Kf8 {[%clk 0:00:06.6]} 54. Rc7 {[%clk 0:00:09.6]} 54... Ke8 {[%clk 0:00:07]} 55.
Rb8# {[%clk 0:00:10.5]} 1-0